[Event "Live Chess"]
[Site "Chess.com"]
[Date "2024.06.02"]
[Round "-"]
[White "JohanKjeldahl"]
[Black "lyricalschemes"]
[Result "1/2-1/2"]
[WhiteElo "1794"]
[BlackElo "2192"]
[TimeControl "300"]
[EndTime "8:12:45 PDT"]
[Termination "Game drawn by repetition"]

1. c4 {[%clk 0:04:57.7]} 1... e5 {[%clk 0:04:58.4]} 2. Nc3 {[%clk 0:04:56.2]}
2... Nf6 {[%clk 0:04:56.2]} 3. Nf3 {[%clk 0:04:54.7]} 3... e4 {[%clk 0:04:54.4]}
4. Ng5 {[%clk 0:04:53.2]} 4... Qe7 {[%clk 0:04:52.8]} 5. Qc2 {[%clk 0:04:48.4]}
5... Nc6 {[%clk 0:04:51.7]} 6. a3 {[%clk 0:04:45.3]} 6... d6 {[%clk 0:04:46]} 7.
Ngxe4 {[%clk 0:04:43.7]} 7... Bf5 {[%clk 0:04:44.6]} 8. d3 {[%clk 0:04:41.2]}
8... O-O-O {[%clk 0:04:40]} 9. Nd5 {[%clk 0:04:34.5]} 9... Nxd5 {[%clk
0:04:31.8]} 10. cxd5 {[%clk 0:04:33.5]} 10... Nd4 {[%clk 0:04:29.6]} 11. Qa4
{[%clk 0:04:32.5]} 11... Qe5 {[%clk 0:04:20.3]} 12. Be3 {[%clk 0:04:20.9]} 12...
c5 {[%clk 0:04:10]} 13. dxc6 {[%clk 0:04:17]} 13... Nxc6 {[%clk 0:04:04.4]} 14.
Rc1 {[%clk 0:04:15.1]} 14... Kb8 {[%clk 0:03:58.3]} 15. g3 {[%clk 0:03:52.7]}
15... d5 {[%clk 0:03:54.4]} 16. Nc5 {[%clk 0:03:45.3]} 16... Qxb2 {[%clk
0:03:34.2]} 17. Na6+ {[%clk 0:03:25.6]} 17... Ka8 {[%clk 0:03:30.8]} 18. Rxc6
{[%clk 0:03:21.5]} 18... bxc6 {[%clk 0:03:27.5]} 19. Qxc6+ {[%clk 0:03:19.2]}
19... Qb7 {[%clk 0:03:27]} 20. Nc7+ {[%clk 0:03:12.1]} 20... Kb8 {[%clk
0:03:26.3]} 21. Na6+ {[%clk 0:03:07.7]} 21... Ka8 {[%clk 0:03:19.9]} 22. Nc7+
{[%clk 0:03:03]} 22... Kb8 {[%clk 0:03:16.8]} 23. Na6+ {[%clk 0:03:01.8]} 23...
Ka8 {[%clk 0:03:15.5]} 1/2-1/2

[Event "Live Chess"]
[Site "Chess.com"]
[Date "2024.06.02"]
[Round "-"]
[White "GerardATHart"]
[Black "MagnersCarlsberg2870"]
[Result "0-1"]
[WhiteElo "1394"]
[BlackElo "1770"]
[TimeControl "300"]
[EndTime "8:13:00 PDT"]
[Termination "MagnersCarlsberg2870 won by resignation"]

1. e4 {[%clk 0:04:56.2]} 1... e5 {[%clk 0:04:58.4]} 2. Nf3 {[%clk 0:04:54.6]}
2... Nf6 {[%clk 0:04:57.4]} 3. Nxe5 {[%clk 0:04:52.4]} 3... Nc6 {[%clk
0:04:55.5]} 4. Nxc6 {[%clk 0:04:51.1]} 4... dxc6 {[%clk 0:04:54.5]} 5. Nc3
{[%clk 0:04:49.7]} 5... Bc5 {[%clk 0:04:50]} 6. d3 {[%clk 0:04:47.2]} 6... Ng4
{[%clk 0:04:43.4]} 7. Be3 {[%clk 0:04:26.6]} 7... Nxe3 {[%clk 0:04:36.5]} 8.
fxe3 {[%clk 0:04:24.1]} 8... Bxe3 {[%clk 0:04:35.8]} 9. Qf3 {[%clk 0:04:21.8]}
9... Bh6 {[%clk 0:04:25.5]} 10. Be2 {[%clk 0:04:18.6]} 10... O-O {[%clk
0:04:24]} 11. O-O {[%clk 0:04:16.9]} 11... Qd4+ {[%clk 0:04:22.8]} 12. Kh1
{[%clk 0:04:14.2]} 12... f5 {[%clk 0:04:21.4]} 13. Qh5 {[%clk 0:04:01.3]} 13...
Bd7 {[%clk 0:04:09.3]} 14. exf5 {[%clk 0:03:45.8]} 14... Rae8 {[%clk 0:04:07.2]}
15. Bg4 {[%clk 0:03:40]} 15... Bd2 {[%clk 0:03:54.9]} 16. Ne4 {[%clk 0:03:22.8]}
16... Qxb2 {[%clk 0:03:47.4]} 17. Ng5 {[%clk 0:03:19.7]} 17... Bxg5 {[%clk
0:03:46]} 18. Qxg5 {[%clk 0:03:17.9]} 18... Qf6 {[%clk 0:03:37.5]} 19. Qf4
{[%clk 0:03:10.1]} 19... g6 {[%clk 0:03:30.4]} 20. Qxc7 {[%clk 0:03:03]} 20...
Bxf5 {[%clk 0:03:26.3]} 21. Qxb7 {[%clk 0:02:55.4]} 21... Rb8 {[%clk 0:03:15.2]}
22. Qxa7 {[%clk 0:02:48.3]} 22... Rb2 {[%clk 0:02:55.9]} 23. Qf2 {[%clk
0:02:16.7]} 23... Qc3 {[%clk 0:02:45.8]} 24. Bxf5 {[%clk 0:02:04.4]} 24... Rxf5
{[%clk 0:02:43.9]} 25. Qa7 {[%clk 0:01:56.9]} 25... Rxc2 {[%clk 0:02:39.7]} 26.
Qb8+ {[%clk 0:01:47.1]} 26... Kg7 {[%clk 0:02:36.7]} 27. Qc7+ {[%clk 0:01:43.2]}
27... Kh6 {[%clk 0:02:32.9]} 28. Rxf5 {[%clk 0:01:34.6]} 28... Qxa1+ {[%clk
0:02:31.2]} 0-1

[Event "Live Chess"]
[Site "Chess.com"]
[Date "2024.06.02"]
[Round "-"]
[White "ClassyChameleon"]
[Black "FREDERICKtheMATE"]
[Result "0-1"]
[WhiteElo "1515"]
[BlackElo "2661"]
[TimeControl "300"]
[EndTime "8:13:01 PDT"]
[Termination "FREDERICKtheMATE won by resignation"]

1. e4 {[%clk 0:04:54.3]} 1... c5 {[%clk 0:04:59.1]} 2. Nf3 {[%clk 0:04:53.6]}
2... Nc6 {[%clk 0:04:58.5]} 3. d4 {[%clk 0:04:53.3]} 3... cxd4 {[%clk
0:04:58.2]} 4. Nxd4 {[%clk 0:04:53.1]} 4... Nf6 {[%clk 0:04:57.5]} 5. Nxc6
{[%clk 0:04:52.2]} 5... bxc6 {[%clk 0:04:57.4]} 6. e5 {[%clk 0:04:51.9]} 6...
Qa5+ {[%clk 0:04:56.1]} 7. c3 {[%clk 0:04:47.3]} 7... Qxe5+ {[%clk 0:04:54.9]}
8. Be3 {[%clk 0:04:47]} 8... Nd5 {[%clk 0:04:53.6]} 9. Be2 {[%clk 0:04:42.9]}
9... Nxe3 {[%clk 0:04:52.4]} 10. fxe3 {[%clk 0:04:42.3]} 10... Qxe3 {[%clk
0:04:51.3]} 11. Na3 {[%clk 0:04:35.3]} 11... Ba6 {[%clk 0:04:48.6]} 12. c4
{[%clk 0:04:32.6]} 12... e6 {[%clk 0:04:45.3]} 13. Rc1 {[%clk 0:04:30.4]} 13...
Bb4+ {[%clk 0:04:39.7]} 14. Kf1 {[%clk 0:04:20.2]} 14... Qf4+ {[%clk 0:04:38.4]}
15. Bf3 {[%clk 0:04:16.6]} 15... Bxa3 {[%clk 0:04:35.5]} 16. bxa3 {[%clk
0:04:13.5]} 16... Bxc4+ {[%clk 0:04:33.7]} 17. Ke1 {[%clk 0:04:08.7]} 17... Qe3+
{[%clk 0:04:29.6]} 18. Be2 {[%clk 0:04:07.7]} 18... Bxe2 {[%clk 0:04:28.7]} 19.
Qxe2 {[%clk 0:04:06.5]} 19... Qxe2+ {[%clk 0:04:28.6]} 20. Kxe2 {[%clk
0:04:05.8]} 20... Ke7 {[%clk 0:04:27]} 21. Rc3 {[%clk 0:04:02.1]} 21... Rab8
{[%clk 0:04:26.5]} 22. Rhc1 {[%clk 0:04:00.6]} 22... Rb2+ {[%clk 0:04:25.3]} 23.
R1c2 {[%clk 0:04:00.4]} 23... Rhb8 {[%clk 0:04:24.3]} 24. Kd3 {[%clk 0:03:58.8]}
24... Rxc2 {[%clk 0:04:23]} 25. Kxc2 {[%clk 0:03:56.2]} 25... Rb5 {[%clk
0:04:22.9]} 26. g3 {[%clk 0:03:53.2]} 26... Kd6 {[%clk 0:04:21.9]} 27. h4 {[%clk
0:03:52.8]} 27... Rc5 {[%clk 0:04:21.1]} 28. Kb3 {[%clk 0:03:50.7]} 28... Rxc3+
{[%clk 0:04:19.9]} 29. Kxc3 {[%clk 0:03:50.6]} 29... Ke5 {[%clk 0:04:19.5]} 30.
Kc4 {[%clk 0:03:48.4]} 30... d6 {[%clk 0:04:18.2]} 31. Kb4 {[%clk 0:03:46.5]}
31... d5 {[%clk 0:04:14.6]} 32. Ka5 {[%clk 0:03:46.1]} 32... d4 {[%clk
0:04:14.2]} 33. Ka6 {[%clk 0:03:46]} 33... d3 {[%clk 0:04:13.7]} 34. Kxa7 {[%clk
0:03:45.9]} 34... d2 {[%clk 0:04:13.3]} 0-1

[Event "Live Chess"]
[Site "Chess.com"]
[Date "2024.06.02"]
[Round "-"]
[White "bobby_jamesFischer86"]
[Black "Ferrarifan27"]
[Result "0-1"]
[WhiteElo "1640"]
[BlackElo "2147"]
[TimeControl "300"]
[EndTime "8:13:14 PDT"]
[Termination "Ferrarifan27 won by resignation"]

1. d4 {[%clk 0:04:56.5]} 1... Nf6 {[%clk 0:04:58.1]} 2. c4 {[%clk 0:04:55.2]}
2... e6 {[%clk 0:04:57.1]} 3. Nc3 {[%clk 0:04:53.2]} 3... Bb4 {[%clk 0:04:55.6]}
4. Bd2 {[%clk 0:04:51.4]} 4... c5 {[%clk 0:04:53.3]} 5. dxc5 {[%clk 0:04:49.8]}
5... Bxc5 {[%clk 0:04:50.7]} 6. e3 {[%clk 0:04:48.6]} 6... O-O {[%clk
0:04:48.1]} 7. Nf3 {[%clk 0:04:47.3]} 7... Nc6 {[%clk 0:04:46.1]} 8. a3 {[%clk
0:04:45.9]} 8... Be7 {[%clk 0:04:41]} 9. Be2 {[%clk 0:04:44.6]} 9... b6 {[%clk
0:04:38.7]} 10. Qc2 {[%clk 0:04:43.1]} 10... Bb7 {[%clk 0:04:38]} 11. Rd1 {[%clk
0:04:41.7]} 11... Rc8 {[%clk 0:04:36.6]} 12. Qb1 {[%clk 0:04:40.1]} 12... a6
{[%clk 0:04:30.3]} 13. O-O {[%clk 0:04:38.6]} 13... Qc7 {[%clk 0:04:29.3]} 14.
Rc1 {[%clk 0:04:27.1]} 14... Na5 {[%clk 0:04:26.6]} 15. Rfd1 {[%clk 0:03:54]}
15... Nxc4 {[%clk 0:04:22.8]} 16. Na2 {[%clk 0:03:48.3]} 16... Nxd2 {[%clk
0:04:21.4]} 17. Rxd2 {[%clk 0:03:34.1]} 17... Qb8 {[%clk 0:04:14.9]} 18. Rdc2
{[%clk 0:03:29.5]} 18... Rxc2 {[%clk 0:04:06.3]} 19. Rxc2 {[%clk 0:03:27.5]}
19... Be4 {[%clk 0:04:05]} 20. Qc1 {[%clk 0:03:21.6]} 20... Bxc2 {[%clk
0:04:03.6]} 21. Qxc2 {[%clk 0:03:20.2]} 21... Rc8 {[%clk 0:04:02.6]} 22. Nc3
{[%clk 0:03:13.7]} 22... d5 {[%clk 0:04:00.3]} 23. Qd2 {[%clk 0:03:12.1]} 23...
Qc7 {[%clk 0:03:55.4]} 24. h3 {[%clk 0:03:09]} 24... b5 {[%clk 0:03:52.6]} 25.
Bf1 {[%clk 0:02:58.8]} 25... Ne4 {[%clk 0:03:48.4]} 26. Nxe4 {[%clk 0:02:56.8]}
26... dxe4 {[%clk 0:03:48.3]} 27. Qd4 {[%clk 0:02:50.9]} 27... exf3 {[%clk
0:03:45]} 0-1

[Event "Live Chess"]
[Site "Chess.com"]
[Date "2024.06.02"]
[Round "-"]
[White "Andysav3"]
[Black "PaulyD81"]
[Result "1-0"]
[WhiteElo "1895"]
[BlackElo "980"]
[TimeControl "300"]
[EndTime "8:13:28 PDT"]
[Termination "Andysav3 won on time"]

1. e4 {[%clk 0:04:57.7]} 1... c5 {[%clk 0:04:58]} 2. c3 {[%clk 0:04:56.2]} 2...
d6 {[%clk 0:04:53.9]} 3. d4 {[%clk 0:04:55.1]} 3... cxd4 {[%clk 0:04:45]} 4.
cxd4 {[%clk 0:04:53.9]} 4... Nf6 {[%clk 0:04:20.3]} 5. Nc3 {[%clk 0:04:52.2]}
5... Nc6 {[%clk 0:03:57.6]} 6. Nf3 {[%clk 0:04:45.2]} 6... a6 {[%clk 0:03:53.8]}
7. h3 {[%clk 0:04:42.3]} 7... g6 {[%clk 0:03:52.3]} 8. Bg5 {[%clk 0:04:34]} 8...
Bg7 {[%clk 0:03:27.5]} 9. Qd2 {[%clk 0:04:32.7]} 9... O-O {[%clk 0:03:17.8]} 10.
Bh6 {[%clk 0:04:25.4]} 10... Qa5 {[%clk 0:02:44.6]} 11. a3 {[%clk 0:04:19]}
11... Bxh6 {[%clk 0:02:28.5]} 12. Qxh6 {[%clk 0:04:07.4]} 12... Qh5 {[%clk
0:02:27.8]} 13. Qe3 {[%clk 0:03:54.6]} 13... Ng4 {[%clk 0:02:07.2]} 14. Qd2
{[%clk 0:03:51.9]} 14... Nf6 {[%clk 0:01:56.4]} 15. Be2 {[%clk 0:03:49.1]} 15...
Qa5 {[%clk 0:01:29.3]} 16. O-O {[%clk 0:03:45.3]} 16... e5 {[%clk 0:01:08.4]}
17. d5 {[%clk 0:03:32.6]} 17... Nd4 {[%clk 0:00:20.2]} 18. Nxd4 {[%clk
0:03:29.5]} 18... exd4 {[%clk 0:00:19.1]} 19. Qxd4 {[%clk 0:03:28.5]} 19... Bd7
{[%clk 0:00:10.6]} 20. Qxf6 {[%clk 0:03:26.5]} 20... Rae8 {[%clk 0:00:04.2]} 21.
Qxd6 {[%clk 0:03:23.4]} 1-0

[Event "Live Chess"]
[Site "Chess.com"]
[Date "2024.06.02"]
[Round "-"]
[White "Zhevzh1k7"]
[Black "silunn"]
[Result "0-1"]
[WhiteElo "1128"]
[BlackElo "2066"]
[TimeControl "300"]
[EndTime "8:13:30 PDT"]
[Termination "silunn won by resignation"]

1. e4 {[%clk 0:04:56.8]} 1... e6 {[%clk 0:04:59.1]} 2. Nf3 {[%clk 0:04:54.8]}
2... d5 {[%clk 0:04:58.5]} 3. exd5 {[%clk 0:04:49.9]} 3... exd5 {[%clk
0:04:58.4]} 4. d4 {[%clk 0:04:46.3]} 4... Bd6 {[%clk 0:04:57.9]} 5. Nc3 {[%clk
0:04:44.8]} 5... Ne7 {[%clk 0:04:56.5]} 6. Bd3 {[%clk 0:04:39]} 6... Nbc6 {[%clk
0:04:53]} 7. O-O {[%clk 0:04:36.1]} 7... Bg4 {[%clk 0:04:49.7]} 8. Be2 {[%clk
0:04:30.8]} 8... O-O {[%clk 0:04:43.5]} 9. h3 {[%clk 0:04:28.7]} 9... Bh5 {[%clk
0:04:40.6]} 10. Bg5 {[%clk 0:04:20.9]} 10... Qd7 {[%clk 0:04:26.1]} 11. Bxe7
{[%clk 0:04:18.7]} 11... Nxe7 {[%clk 0:04:20.5]} 12. Re1 {[%clk 0:04:07.8]}
12... c6 {[%clk 0:04:13.6]} 13. Qd2 {[%clk 0:03:55.5]} 13... Ng6 {[%clk
0:04:02]} 14. Ng5 {[%clk 0:03:46.6]} 14... Bf4 {[%clk 0:03:57.1]} 15. Qd3 {[%clk
0:03:31.1]} 15... Bxe2 {[%clk 0:03:14.3]} 16. Rxe2 {[%clk 0:03:24]} 16... Bxg5
{[%clk 0:03:12.4]} 17. Rae1 {[%clk 0:03:14.3]} 17... Nf4 {[%clk 0:03:07.5]} 18.
Qd2 {[%clk 0:03:03.9]} 18... Nxh3+ {[%clk 0:03:04.7]} 19. gxh3 {[%clk
0:03:00.8]} 19... Bxd2 {[%clk 0:03:03.7]} 20. Rxd2 {[%clk 0:03:00.7]} 20... Rae8
{[%clk 0:03:03.1]} 0-1

[Event "Live Chess"]
[Site "Chess.com"]
[Date "2024.06.02"]
[Round "-"]
[White "lateforthesky"]
[Black "ukraineZelensky"]
[Result "1-0"]
[WhiteElo "2074"]
[BlackElo "1318"]
[TimeControl "300"]
[EndTime "8:13:53 PDT"]
[Termination "lateforthesky won by checkmate"]

1. e4 {[%clk 0:04:57.3]} 1... e5 {[%clk 0:04:58.2]} 2. f4 {[%clk 0:04:54.7]}
2... exf4 {[%clk 0:04:54.6]} 3. Bc4 {[%clk 0:04:53.6]} 3... d6 {[%clk
0:04:51.2]} 4. d4 {[%clk 0:04:50.6]} 4... Be7 {[%clk 0:04:48]} 5. Nf3 {[%clk
0:04:48.5]} 5... Bh4+ {[%clk 0:04:45.9]} 6. Kf1 {[%clk 0:04:46.9]} 6... Be7
{[%clk 0:04:43.3]} 7. Bxf4 {[%clk 0:04:44.3]} 7... Nf6 {[%clk 0:04:40.9]} 8. Nc3
{[%clk 0:04:42.3]} 8... O-O {[%clk 0:04:37.9]} 9. h3 {[%clk 0:04:39.3]} 9... Nc6
{[%clk 0:04:34.3]} 10. g4 {[%clk 0:04:19.2]} 10... Bd7 {[%clk 0:04:01.9]} 11.
Kg2 {[%clk 0:04:16.6]} 11... Re8 {[%clk 0:03:55.3]} 12. Ng5 {[%clk 0:04:13.6]}
12... Rf8 {[%clk 0:03:48.7]} 13. Rf1 {[%clk 0:03:57.5]} 13... h6 {[%clk
0:03:44.6]} 14. Nxf7 {[%clk 0:03:51.3]} 14... Rxf7 {[%clk 0:03:41]} 15. Bxf7+
{[%clk 0:03:47.7]} 15... Kxf7 {[%clk 0:03:36.8]} 16. h4 {[%clk 0:03:44.4]} 16...
Bxg4 {[%clk 0:03:24]} 17. Qd3 {[%clk 0:03:29.8]} 17... Kg8 {[%clk 0:03:07.2]}
18. Rae1 {[%clk 0:03:16.7]} 18... Nh5 {[%clk 0:02:54.3]} 19. Nd5 {[%clk
0:02:25.1]} 19... Nxf4+ {[%clk 0:02:49]} 20. Nxf4 {[%clk 0:02:22.4]} 20... Bxh4
{[%clk 0:02:44.5]} 21. Re3 {[%clk 0:02:17.5]} 21... Bg5 {[%clk 0:02:37.6]} 22.
Rg3 {[%clk 0:02:15.2]} 22... Bxf4 {[%clk 0:02:12.5]} 23. Rxf4 {[%clk 0:02:12.2]}
23... Bd7 {[%clk 0:02:01.8]} 24. b4 {[%clk 0:02:00.1]} 24... a6 {[%clk
0:01:58.5]} 25. a4 {[%clk 0:01:53.2]} 25... Nxb4 {[%clk 0:01:53.9]} 26. Qb3+
{[%clk 0:01:51.9]} 26... d5 {[%clk 0:01:41.5]} 27. Qxb4 {[%clk 0:01:50.2]} 27...
dxe4 {[%clk 0:01:37.2]} 28. Qxb7 {[%clk 0:01:46.9]} 28... c6 {[%clk 0:01:13.2]}
29. Qb3+ {[%clk 0:01:40.2]} 29... Kh8 {[%clk 0:01:06.8]} 30. Qf7 {[%clk
0:01:37.1]} 30... g5 {[%clk 0:00:28.6]} 31. Rf6 {[%clk 0:01:31]} 31... Qe8
{[%clk 0:00:08.6]} 32. Rxh6# {[%clk 0:01:27.5]} 1-0

[Event "Live Chess"]
[Site "Chess.com"]
[Date "2024.06.02"]
[Round "-"]
[White "Ginger_GM"]
[Black "KyryloPoluliakh"]
[Result "1-0"]
[WhiteElo "2665"]
[BlackElo "1533"]
[TimeControl "300"]
[EndTime "8:13:58 PDT"]
[Termination "Ginger_GM won by checkmate"]

1. e4 {[%clk 0:04:57.6]} 1... c5 {[%clk 0:04:57.9]} 2. Nf3 {[%clk 0:04:53.5]}
2... Nc6 {[%clk 0:04:55.9]} 3. b4 {[%clk 0:04:52.1]} 3... cxb4 {[%clk
0:04:50.6]} 4. d4 {[%clk 0:04:50.8]} 4... d5 {[%clk 0:04:47.1]} 5. exd5 {[%clk
0:04:49.6]} 5... Qxd5 {[%clk 0:04:45.9]} 6. c4 {[%clk 0:04:48.7]} 6... bxc3
{[%clk 0:04:43.1]} 7. Nxc3 {[%clk 0:04:47.8]} 7... Qd8 {[%clk 0:04:41.6]} 8. d5
{[%clk 0:04:46.7]} 8... Nb4 {[%clk 0:04:29.7]} 9. Qa4+ {[%clk 0:04:43.2]} 9...
Bd7 {[%clk 0:04:21.9]} 10. Qxb4 {[%clk 0:04:41.8]} 10... e6 {[%clk 0:04:21]} 11.
d6 {[%clk 0:04:39.9]} 11... Qb8 {[%clk 0:04:17.7]} 12. Bf4 {[%clk 0:04:37.8]}
12... Nf6 {[%clk 0:04:14.6]} 13. Rd1 {[%clk 0:04:33.6]} 13... h6 {[%clk
0:04:11.7]} 14. Nb5 {[%clk 0:04:29.5]} 14... Bxb5 {[%clk 0:04:04.9]} 15. Bxb5+
{[%clk 0:04:28.2]} 15... Kd8 {[%clk 0:04:03.9]} 16. Ne5 {[%clk 0:04:26.5]} 16...
Nd5 {[%clk 0:04:00.7]} 17. Nxf7+ {[%clk 0:04:24.2]} 17... Kc8 {[%clk 0:03:58.8]}
18. d7# {[%clk 0:04:19.8]} 1-0

[Event "Live Chess"]
[Site "Chess.com"]
[Date "2024.06.02"]
[Round "-"]
[White "TheSmoulderingMaster"]
[Black "booktrunk"]
[Result "1-0"]
[WhiteElo "1783"]
[BlackElo "1488"]
[TimeControl "300"]
[EndTime "8:14:00 PDT"]
[Termination "TheSmoulderingMaster won by resignation"]

1. e4 {[%clk 0:04:56.3]} 1... b6 {[%clk 0:04:56]} 2. d4 {[%clk 0:04:52.7]} 2...
Bb7 {[%clk 0:04:55.2]} 3. Nc3 {[%clk 0:04:51.2]} 3... e6 {[%clk 0:04:53.8]} 4.
Nf3 {[%clk 0:04:49.9]} 4... Nf6 {[%clk 0:04:52.8]} 5. Bg5 {[%clk 0:04:48]} 5...
Bb4 {[%clk 0:04:50.5]} 6. e5 {[%clk 0:04:46.8]} 6... h6 {[%clk 0:04:48.2]} 7.
Bh4 {[%clk 0:04:45.2]} 7... g5 {[%clk 0:04:47.2]} 8. Bg3 {[%clk 0:04:44.2]} 8...
Nh5 {[%clk 0:04:45.5]} 9. Bd3 {[%clk 0:04:41.2]} 9... Nxg3 {[%clk 0:04:41.9]}
10. hxg3 {[%clk 0:04:40.3]} 10... Bxc3+ {[%clk 0:04:40.4]} 11. bxc3 {[%clk
0:04:38.4]} 11... Qe7 {[%clk 0:04:40]} 12. Qe2 {[%clk 0:04:35]} 12... d6 {[%clk
0:04:38.5]} 13. Qe3 {[%clk 0:04:32.4]} 13... dxe5 {[%clk 0:04:36]} 14. Nxe5
{[%clk 0:04:25.7]} 14... Nd7 {[%clk 0:04:31.1]} 15. Bb5 {[%clk 0:04:23.4]} 15...
O-O-O {[%clk 0:04:25.3]} 16. Bxd7+ {[%clk 0:04:18]} 16... Rxd7 {[%clk
0:04:23.8]} 17. Nxd7 {[%clk 0:04:16.3]} 17... Qxd7 {[%clk 0:04:23.7]} 18. O-O
{[%clk 0:04:13.6]} 18... f6 {[%clk 0:04:18.7]} 19. Rad1 {[%clk 0:04:10.5]} 19...
h5 {[%clk 0:04:17.3]} 20. c4 {[%clk 0:04:02.5]} 20... Qc6 {[%clk 0:04:12.3]} 21.
Qf3 {[%clk 0:03:53.2]} 21... Qxc4 {[%clk 0:04:08.5]} 22. Qxf6 {[%clk 0:03:51.4]}
22... Rd8 {[%clk 0:04:05.8]} 23. Rfe1 {[%clk 0:03:48.9]} 23... Qd5 {[%clk
0:04:03.1]} 24. Qxe6+ {[%clk 0:03:45.9]} 24... Qxe6 {[%clk 0:03:56.6]} 25. Rxe6
{[%clk 0:03:44]} 25... Rg8 {[%clk 0:03:53.2]} 26. Rde1 {[%clk 0:03:41.3]} 26...
h4 {[%clk 0:03:52.2]} 27. Re8+ {[%clk 0:03:40]} 27... Rxe8 {[%clk 0:03:50.6]}
28. Rxe8+ {[%clk 0:03:39.1]} 28... Kd7 {[%clk 0:03:50.5]} 29. Rg8 {[%clk
0:03:38.2]} 29... hxg3 {[%clk 0:03:50.4]} 30. fxg3 {[%clk 0:03:35.9]} 30... Bd5
{[%clk 0:03:47.6]} 31. Rxg5 {[%clk 0:03:34.8]} 31... Bxa2 {[%clk 0:03:45.7]} 32.
Rf5 {[%clk 0:03:33.2]} 32... Be6 {[%clk 0:03:44.1]} 33. Rf6 {[%clk 0:03:31.7]}
33... Ke7 {[%clk 0:03:41.3]} 34. Rf4 {[%clk 0:03:29.9]} 34... Bd5 {[%clk
0:03:38.1]} 35. g4 {[%clk 0:03:28.3]} 35... c6 {[%clk 0:03:34.1]} 36. g5 {[%clk
0:03:27.5]} 36... Bf7 {[%clk 0:03:33.3]} 37. Kf2 {[%clk 0:03:25.3]} 37... Bg6
{[%clk 0:03:31.9]} 38. Ke3 {[%clk 0:03:23]} 38... Bxc2 {[%clk 0:03:30]} 39. Rf6
{[%clk 0:03:19.6]} 39... Kd7 {[%clk 0:03:23.8]} 40. g6 {[%clk 0:03:17.1]} 40...
Ke7 {[%clk 0:03:23]} 41. g7 {[%clk 0:03:15.1]} 41... Bh7 {[%clk 0:03:19.9]} 42.
Rh6 {[%clk 0:03:12.5]} 42... Bg8 {[%clk 0:03:18]} 43. Rg6 {[%clk 0:03:10.2]}
43... Kf7 {[%clk 0:03:16.8]} 44. Rg5 {[%clk 0:03:07.2]} 44... Bh7 {[%clk
0:03:13.6]} 45. Kf4 {[%clk 0:03:05.9]} 45... a5 {[%clk 0:03:10]} 46. Ke5 {[%clk
0:03:03.9]} 46... b5 {[%clk 0:03:06.9]} 47. Kd6 {[%clk 0:03:02.8]} 47... b4
{[%clk 0:03:04.7]} 48. Rxa5 {[%clk 0:02:55.7]} 48... b3 {[%clk 0:02:55.5]} 49.
Kxc6 {[%clk 0:02:53]} 49... Be4+ {[%clk 0:02:53.3]} 50. Kc5 {[%clk 0:02:50]}
50... Bxg2 {[%clk 0:02:51.4]} 51. Rb5 {[%clk 0:02:45.6]} 51... Kxg7 {[%clk
0:02:49.7]} 52. Rxb3 {[%clk 0:02:42.8]} 52... Kf7 {[%clk 0:02:49.6]} 53. d5
{[%clk 0:02:40.2]} 53... Ke7 {[%clk 0:02:49.5]} 54. d6+ {[%clk 0:02:39.3]} 54...
Kd7 {[%clk 0:02:48.3]} 55. Rg3 {[%clk 0:02:37.1]} 55... Be4 {[%clk 0:02:44]} 56.
Rg7+ {[%clk 0:02:35.3]} 56... Kd8 {[%clk 0:02:42.3]} 57. d7 {[%clk 0:02:31.9]}
57... Bf5 {[%clk 0:02:40.2]} 58. Kd6 {[%clk 0:02:30.7]} 58... Bxd7 {[%clk
0:02:33.7]} 59. Rxd7+ {[%clk 0:02:26.5]} 59... Ke8 {[%clk 0:02:32.6]} 60. Ke6
{[%clk 0:02:24.1]} 60... Kf8 {[%clk 0:02:31.5]} 61. Rc7 {[%clk 0:02:23]} 61...
Kg8 {[%clk 0:02:29.7]} 62. Kf6 {[%clk 0:02:22.4]} 62... Kh8 {[%clk 0:02:28.7]}
63. Kg6 {[%clk 0:02:21.8]} 1-0

[Event "Live Chess"]
[Site "Chess.com"]
[Date "2024.06.02"]
[Round "-"]
[White "Hazban"]
[Black "joellloyd"]
[Result "1-0"]
[WhiteElo "2058"]
[BlackElo "1892"]
[TimeControl "300"]
[EndTime "8:14:04 PDT"]
[Termination "Hazban won by resignation"]

1. d4 {[%clk 0:04:58.4]} 1... Nf6 {[%clk 0:04:58.8]} 2. Nf3 {[%clk 0:04:57.3]}
2... c6 {[%clk 0:04:58.1]} 3. c4 {[%clk 0:04:49.3]} 3... d5 {[%clk 0:04:57.4]}
4. cxd5 {[%clk 0:04:48.5]} 4... cxd5 {[%clk 0:04:56.6]} 5. Nc3 {[%clk
0:04:47.4]} 5... Nc6 {[%clk 0:04:55.3]} 6. Bf4 {[%clk 0:04:46.2]} 6... a6 {[%clk
0:04:49.3]} 7. e3 {[%clk 0:04:44.1]} 7... e6 {[%clk 0:04:45]} 8. Bd3 {[%clk
0:04:40.3]} 8... Bd6 {[%clk 0:04:44.2]} 9. Ne5 {[%clk 0:04:38]} 9... Qc7 {[%clk
0:04:32]} 10. Nxc6 {[%clk 0:04:34.7]} 10... Bxf4 {[%clk 0:04:12.9]} 11. exf4
{[%clk 0:04:19.3]} 11... bxc6 {[%clk 0:04:02.4]} 12. g3 {[%clk 0:04:15.8]} 12...
c5 {[%clk 0:03:47.5]} 13. dxc5 {[%clk 0:04:12.2]} 13... Qxc5 {[%clk 0:03:45]}
14. O-O {[%clk 0:04:09.3]} 14... O-O {[%clk 0:03:43.6]} 15. Rc1 {[%clk 0:04:05]}
15... Qd6 {[%clk 0:03:32.8]} 16. Qe2 {[%clk 0:03:54.3]} 16... Bd7 {[%clk
0:03:24.3]} 17. Rfd1 {[%clk 0:03:51.8]} 17... Qb6 {[%clk 0:03:19.7]} 18. Bb1
{[%clk 0:03:37.2]} 18... Bb5 {[%clk 0:03:05.6]} 19. Nxb5 {[%clk 0:03:35.7]}
19... axb5 {[%clk 0:03:05.5]} 20. g4 {[%clk 0:03:24.3]} 20... d4 {[%clk
0:02:51.8]} 21. g5 {[%clk 0:03:20.5]} 21... Nd5 {[%clk 0:02:49.7]} 22. Qe4
{[%clk 0:03:15.7]} 22... g6 {[%clk 0:02:29]} 23. Qxd4 {[%clk 0:03:13.6]} 23...
Qd6 {[%clk 0:02:22.3]} 24. Rc5 {[%clk 0:02:49.1]} 24... Rfb8 {[%clk 0:01:57.5]}
25. Be4 {[%clk 0:02:40.8]} 25... Qxf4 {[%clk 0:01:45.9]} 26. Bxd5 {[%clk
0:02:36.8]} 26... Qxg5+ {[%clk 0:01:44.1]} 27. Bg2 {[%clk 0:02:34.5]} 27... e5
{[%clk 0:01:40.3]} 28. Rxe5 {[%clk 0:02:29.6]} 28... Qh6 {[%clk 0:01:25.1]} 29.
Bxa8 {[%clk 0:02:22.8]} 29... Rxa8 {[%clk 0:01:22.1]} 30. Rde1 {[%clk
0:02:18.2]} 1-0